bitfinex/quotes_ETHUSD_20250923
["timestamp","ask_amount","ask_price","bid_price","bid_amount"]
[1758656751858,0.13417798,4165.3,4165.2,16.22846717]
[1758656752060,0.13417798,4165.3,4165.2,14.5]
[1758656753254,0.35819996,4165.3,4165.2,14.5]
[1758656753772,0.60159996,4165.3,4165.2,14.5]
[1758656753969,0.60159996,4165.3,4165.1,0.024]
[1758656753970,3.45128741,4165.3,4165.1,0.024]
[1758656754176,3.81181216,4165.2,4165.1,0.024]
[1758656754375,4.05521216,4165.2,4165.1,0.024]
[1758656754538,10.18421216,4165.2,4165.1,0.024]
[1758656755040,10.70051136,4165.2,4165.1,0.024]
[1758656756061,13.70051136,4165.2,4165.1,0.024]
[1758656757657,10.70051136,4165.2,4165.1,0.024]
[1758656757990,13.70051136,4165.2,4165.1,0.024]
[1758656758187,14.34576907,4165.2,4165.1,0.024]
[1758656758484,13.70051136,4165.2,4165.1,0.024]
[1758656759060,13.70051136,4165.2,4165.1,1e-08]
[1758656759259,14.56432218,4165.2,4165.1,1e-08]
[1758656759449,13.70051136,4165.2,4165.1,1e-08]
[1758656760259,13.70051136,4165.2,4163.3,0.2398]
[1758656760260,2.40198399,4163.3,4162.3,0.2398]
[1758656760563,4.44119996,4163.2,4163.0,0.4404]
[1758656760767,0.35819996,4163.2,4163.1,0.04402056]
[1758656760966,0.13433188,4163.2,4163.1,0.26461519]
[1758656761178,0.13433188,4163.2,4163.1,0.7002]
[1758656761373,3.783,4163.5,4163.1,15.9922]
[1758656761580,0.13423935,4163.4,4163.2,1.4722]
[1758656761781,0.13423935,4163.3,4163.2,0.792]
[1758656761976,3.783,4163.5,4163.2,0.792]
[1758656762181,3.783,4163.5,4163.3,2.3472194]
[1758656762698,0.46969507,4163.9,4163.5,0.792]
[1758656762865,4.21815779,4163.8,4163.6,0.70421767]
[1758656763069,0.13415779,4163.7,4163.4,0.792]
[1758656763268,0.13415779,4163.6,4163.4,0.792]
[1758656763480,4.084,4163.8,4163.4,2.71651888]
[1758656763676,0.13410285,4163.7,4163.5,0.6802]
[1758656763975,0.13410285,4163.6,4163.4,2.71651888]
[1758656764186,4.085,4163.5,4163.4,2.71651888]
[1758656764497,4.085,4163.5,4163.4,3.39671888]
[1758656765467,4.085,4163.5,4163.1,14.52]
[1758656765889,0.37740446,4163.4,4163.1,14.52]
[1758656766205,0.13400446,4163.3,4163.1,14.52]
[1758656766511,6.86240292,4163.2,4163.1,0.02]
[1758656767003,7.53450161,4163.2,4163.1,0.02]
[1758656767186,8.52814123,4163.2,4163.1,0.02]
[1758656768313,8.30494254,4163.2,4163.1,0.02]
[1758656768485,5.90294408,4163.2,4163.1,0.02]
[1758656768810,5.45404408,4163.2,4163.1,0.02]
[1758656769011,6.86240292,4163.2,4163.1,0.02]
[1758656769172,4.46040446,4163.2,4163.1,0.02]
[1758656769705,6.86240292,4163.2,4163.1,0.02]
[1758656770374,4.21500446,4163.2,4163.1,0.02]
[1758656770574,6.29300446,4163.2,4163.1,0.02]
[1758656771819,6.29300446,4163.2,4163.1,0.7066]
[1758656771978,6.29300446,4163.2,4163.1,0.02]
[1758656772173,4.21400446,4163.2,4163.1,0.02]
[1758656772506,6.29200446,4163.2,4163.1,0.02]
[1758656773272,6.51476667,4163.2,4163.1,0.02]
[1758656773591,6.29200446,4163.2,4163.1,0.02]
[1758656773904,0.13400446,4163.2,4163.1,0.02]
[1758656774105,6.158,4163.2,4163.1,0.7066]
[1758656774312,6.29200446,4163.2,4163.1,0.7066]
[1758656774710,6.29200446,4163.2,4163.1,0.02]
[1758656774911,8.69400292,4163.2,4163.1,0.02]
[1758656775111,6.29200446,4163.2,4163.1,0.02]
[1758656775408,6.51488122,4163.2,4163.1,0.02]
[1758656775983,10.06760063,4163.2,4163.1,0.02]
[1758656776876,7.66560217,4163.2,4163.1,0.02]
[1758656777077,0.13400446,4163.2,4163.1,0.4604]
[1758656777374,0.13400446,4163.2,4163.1,3.90065616]
[1758656777597,0.2538264,4163.6,4163.3,2.40189995]
[1758656777803,2.5468264,4163.5,4163.4,0.6866]
[1758656778280,2.5468264,4163.5,4163.1,0.02]
[1758656778583,0.1338264,4163.4,4163.2,0.6866]
[1758656778785,0.1338264,4163.3,4163.1,0.02]
[1758656778975,4.2098264,4163.2,4163.1,0.02]
[1758656779513,4.43300005,4163.2,4163.1,0.02]
[1758656781490,4.43300005,4163.2,4163.1,0.2662]
[1758656781692,4.43300005,4163.2,4163.1,0.7066]
[1758656782002,4.43300005,4163.2,4163.1,5.66432575]
[1758656782003,0.35700005,4163.2,4163.1,5.66432575]
[1758656782204,4.43100005,4163.2,4163.1,5.66432575]
[1758656782678,4.43100005,4163.2,4163.1,1.6186]
[1758656782880,4.43100005,4163.2,4163.1,18.52065616]
[1758656784588,4.43100005,4163.2,4163.1,16.1186]
[1758656784791,4.43100005,4163.2,4163.1,14.52]
[1758656785316,4.66650005,4163.2,4163.1,14.52]
[1758656785522,5.14515006,4163.2,4163.1,14.52]
[1758656785724,4.66650005,4163.2,4163.1,14.52]
[1758656785930,7.06849851,4163.2,4163.1,14.52]
[1758656786128,4.94719626,4163.2,4163.1,14.52]
[1758656786431,4.43100005,4163.2,4163.1,14.52]
[1758656787118,4.94719626,4163.2,4163.1,14.524]
[1758656788099,0.87319626,4163.2,4163.1,17.61265616]
[1758656788300,4.43000005,4163.2,4163.1,17.61265616]
[1758656789035,4.43000005,4163.2,4163.1,15.2106]
[1758656789237,4.94859185,4163.2,4163.1,15.2106]
[1758656790398,4.94859185,4163.2,4163.1,14.524]
[1758656791145,5.18409185,4163.2,4163.1,14.524]
[1758656791740,5.18409185,4163.2,4163.1,0.024]
[1758656792119,9.03969406,4163.2,4163.1,0.024]
[1758656793157,6.6376956,4163.2,4163.1,0.024]
[1758656793455,9.03969406,4163.2,4163.1,0.024]
[1758656794235,12.03969406,4163.2,4163.1,0.024]
[1758656796420,12.9005014,4163.2,4163.1,0.024]
[1758656797156,12.03969406,4163.2,4163.1,0.024]
[1758656797359,12.03954201,4163.2,4163.1,0.024]
[1758656798448,12.03920866,4163.2,4163.1,0.024]
[1758656798757,7.29870866,4163.2,4163.1,0.024]
[1758656798958,13.44470866,4163.2,4163.1,0.024]
[1758656799144,13.44469668,4163.2,4163.1,0.024]
[1758656799343,13.68019668,4163.2,4163.1,0.024]
[1758656799648,14.11219668,4163.2,4163.1,0.024]
[1758656799847,13.44469668,4163.2,4163.1,0.024]
[1758656800460,14.11219668,4163.2,4163.1,0.024]
[1758656801027,12.03419668,4163.2,4163.1,0.024]
[1758656801228,0.87509447,4163.2,4163.1,0.7269]
[1758656801462,7.02109576,4163.2,4163.1,0.7269]
[1758656802860,7.02109576,4163.2,4163.1,0.024]
[1758656803265,7.02109576,4163.2,4163.1,0.7269]
[1758656805537,7.02109576,4163.2,4163.1,0.2523]
[1758656805865,7.02109576,4163.2,4163.1,0.024]
[1758656806254,7.02117532,4163.2,4163.1,0.024]
[1758656806830,8.20868202,4163.2,4163.1,0.024]
[1758656807027,7.97548202,4163.2,4163.1,0.024]
[1758656807244,7.01917532,4163.2,4163.1,0.024]
[1758656808061,9.42117378,4163.2,4163.1,0.024]
[1758656808381,7.01917532,4163.2,4163.1,0.024]
[1758656809667,0.35871222,4163.2,4163.1,0.024]
[1758656809871,2.43671222,4163.2,4163.1,1.5189]
[1758656810170,6.50071222,4163.2,4163.1,1.5189]
[1758656812155,6.50071222,4163.2,4163.1,0.2523]
[1758656812356,6.62071222,4163.2,4163.1,0.024]
[1758656812747,6.85391222,4163.2,4163.1,0.024]
[1758656813495,7.69596955,4163.2,4163.1,0.024]
[1758656813693,10.09796801,4163.2,4163.1,0.024]
[1758656813866,10.55910002,4163.2,4163.1,0.024]
[1758656814071,11.20452207,4163.2,4163.1,0.024]
[1758656814258,10.55910002,4163.2,4163.1,0.024]
[1758656814460,13.55910002,4163.2,4163.1,0.024]
[1758656814785,14.41976496,4163.2,4163.1,0.024]
[1758656815302,13.55910002,4163.2,4163.1,0.024]
[1758656815592,14.41976496,4163.2,4163.1,0.024]
[1758656816439,13.55910002,4163.2,4163.1,0.024]
[1758656817580,12.86470002,4163.2,4163.1,0.024]
[1758656817781,13.0652959,4163.2,4163.1,0.024]
[1758656817983,5.95304986,4163.2,4163.1,0.2523]
[1758656818168,10.13804986,4163.2,4163.1,0.7269]
[1758656818698,10.13804986,4163.2,4163.1,0.2523]
[1758656818872,10.13804986,4163.2,4163.1,0.7269]
[1758656819079,3.99504986,4163.2,4163.1,0.7269]
[1758656819279,0.35871222,4163.2,4163.1,0.7269]
[1758656819477,4.42471222,4163.2,4163.1,0.7269]
[1758656820169,0.35871222,4163.2,4163.1,3.92095616]
[1758656820376,4.28571222,4163.2,4163.1,2.27401216]
[1758656820700,4.28571222,4163.2,4163.1,0.7269]
[1758656820912,4.28571222,4163.2,4163.1,3.12895616]
[1758656821209,4.42571222,4163.2,4163.1,3.92095616]
[1758656821414,4.42571222,4163.2,4163.1,4.04095616]
[1758656821711,0.35871222,4163.2,4163.1,4.04095616]
[1758656821920,4.42771222,4163.2,4163.1,4.688067]
[1758656823179,4.20357811,4163.2,4163.1,4.688067]
[1758656824310,0.13457811,4163.2,4163.1,4.688067]
[1758656827725,0.22381931,4164.0,4163.9,2.40159465]
[1758656828027,2.13912158,4164.0,4163.9,1.97522632]
[1758656828233,1.91530227,4164.0,4163.9,3.89649465]
[1758656828738,1.91523781,4164.0,4163.9,3.89649465]
[1758656829336,4.19823781,4164.0,4163.9,3.89649465]
[1758656830606,4.19823781,4164.0,4163.9,1.4949]
[1758656830812,4.19823781,4164.0,4163.9,3.89649465]
[1758656831008,4.43143781,4164.0,4163.6,2.40174155]
[1758656831212,0.13423781,4163.9,4163.7,0.792]
[1758656831539,0.13423781,4163.8,4163.7,0.792]
[1758656831712,0.13423781,4163.8,4163.7,3.19371001]
[1758656831907,0.13423781,4163.8,4163.3,2.40193272]
[1758656832132,0.13423781,4163.8,4163.1,3.07316536]
[1758656832133,0.82843781,4163.7,4163.1,2.42601505]
[1758656832307,6.27523781,4163.6,4163.1,2.42601505]
[1758656832519,0.38233781,4163.5,4163.2,0.792]
[1758656832721,0.13423781,4163.4,4163.2,0.792]
[1758656832917,0.13423781,4163.4,4163.1,2.42601505]
[1758656832918,0.13423781,4163.3,4163.1,0.816]
[1758656833260,4.19713168,4163.2,4163.1,3.21805274]
[1758656833548,4.19713168,4163.2,4163.1,0.816]
[1758656834622,4.19713168,4163.2,4163.1,0.024]
[1758656834811,4.44523168,4163.2,4163.1,0.024]
[1758656835514,4.19713168,4163.2,4163.1,0.024]
[1758656835942,8.20154119,4163.2,4163.1,14.524]
[1758656836253,5.79954273,4163.2,4163.1,0.024]
[1758656836853,8.20154119,4163.2,4163.1,0.024]
[1758656837152,5.79954273,4163.2,4163.1,0.024]
[1758656837520,8.20154119,4163.2,4163.1,0.024]
[1758656837827,5.79954273,4163.2,4163.1,0.024]
[1758656838530,8.20154119,4163.2,4163.1,0.024]
[1758656839143,4.13854119,4163.2,4163.1,0.024]
[1758656839519,1.73654273,4163.2,4163.1,0.024]
[1758656840235,4.13854119,4163.2,4163.1,14.524]
[1758656840428,10.27654119,4163.2,4163.1,14.524]
[1758656841118,7.87454273,4163.2,4163.1,14.524]
[1758656841351,10.79125309,4163.2,4163.1,14.524]
[1758656842054,10.79125309,4163.2,4163.1,0.024]
[1758656842657,13.79125309,4163.2,4163.1,0.024]
[1758656843656,11.71125309,4163.2,4163.1,0.024]
[1758656843963,13.78925309,4163.2,4163.1,0.024]
[1758656844167,8.29617589,4163.2,4163.1,0.024]
[1758656844530,4.80515463,4163.2,4163.1,0.024]
[1758656844770,9.50463648,4163.2,4163.1,0.024]
[1758656844985,3.87194518,4163.2,4163.1,0.024]
[1758656845287,3.87194518,4163.2,4163.1,0.2544]
[1758656845288,3.35723328,4163.2,4163.1,0.2544]
[1758656845570,3.35723328,4163.2,4163.1,0.024]
[1758656845571,9.50523328,4163.2,4163.1,0.024]
[1758656845733,10.01994518,4163.2,4163.1,0.024]
[1758656846735,12.42194364,4163.2,4163.1,0.024]
[1758656847038,12.2213389,4163.2,4163.1,0.024]
[1758656847237,11.7752389,4163.2,4163.1,0.024]
[1758656847545,14.17723736,4163.2,4163.1,0.024]
[1758656849435,14.17721302,4163.2,4163.1,0.024]
[1758656851057,14.62331302,4163.2,4163.1,0.024]
[1758656856293,15.26623582,4163.2,4163.1,0.024]
[1758656857786,15.26557852,4163.2,4163.1,0.024]
[1758656858160,14.62331302,4163.2,4163.1,0.024]
[1758656859101,14.94127818,4163.2,4163.1,1e-08]
[1758656859302,15.22191527,4163.2,4163.1,1e-08]
[1758656859675,2.40211386,4163.0,4162.9,1e-08]
[1758656859888,19.08836436,4163.0,4162.9,1e-08]
[1758656860092,13.82223509,4163.0,4162.9,1e-08]
[1758656860883,14.19893368,4163.0,4162.9,1e-08]
[1758656861669,14.19893368,4163.0,4162.6,0.004]
[1758656861670,2.40222926,4162.8,4162.6,1e-08]
[1758656861870,25.92503161,4162.7,4162.6,1e-08]
[1758656862207,26.92759677,4162.7,4162.6,1e-08]
[1758656862565,2.40293023,4161.6,4161.3,0.19820001]
[1758656862766,6.50920894,4161.5,4161.3,0.19820001]
[1758656862998,0.35720894,4161.4,4161.3,0.19820001]
[1758656863706,0.35720894,4161.4,4161.3,0.62690001]
[1758656864488,4.42920894,4161.4,4161.2,14.5]
[1758656864695,4.42920894,4161.4,4161.2,14.9287]
[1758656864696,0.35720894,4161.3,4161.2,14.9287]
[1758656864866,0.35720894,4161.3,4161.2,14.5]
[1758656865072,0.35720894,4161.3,4161.2,15.1569]
[1758656865583,0.8290253,4161.3,4161.2,15.1569]
[1758656865781,0.35720894,4161.3,4161.2,15.1569]
[1758656868824,0.35720894,4161.3,4161.2,14.9287]
[1758656868992,0.13396361,4161.3,4161.2,19.31807444]
[1758656869199,4.20196361,4161.3,4161.2,19.31807444]
[1758656869720,0.13396361,4161.3,4161.2,20.11007444]
[1758656869923,2.079,4162.1,4161.8,2.40280647]
[1758656870123,1.74883317,4162.0,4161.9,0.6569]
[1758656870298,4.20383317,4162.0,4161.9,0.6569]
[1758656870621,4.20383317,4162.0,4161.9,17.55964874]
[1758656870984,4.20483317,4162.0,4161.9,17.55964874]
[1758656871482,4.20483317,4162.0,4161.9,18.35164874]
[1758656871483,0.13383317,4162.0,4161.9,18.35164874]
[1758656871682,1.64383317,4162.0,4161.9,20.79448634]
[1758656871884,1.51,4162.0,4161.9,20.79448634]
[1758656873488,0.51,4162.0,4161.9,20.79448634]
[1758656874625,4.073,4162.2,4162.1,3.19463328]
[1758656874832,4.20687683,4162.2,4162.1,1.4489]
[1758656875027,4.20687683,4162.2,4162.1,5.67158885]
[1758656875533,0.13387683,4162.2,4162.1,3.26895557]
[1758656875733,0.13387683,4162.2,4162.1,5.44338885]
[1758656875936,4.20587683,4162.2,4162.1,5.67158885]
[1758656876139,4.20587683,4162.2,4162.1,1.82005557]
[1758656876435,4.20587683,4162.2,4161.9,14.5]
[1758656876640,0.13387683,4162.1,4162.0,3.05953659]
[1758656876818,0.13387683,4162.1,4162.0,2.40263659]
[1758656877437,0.13387683,4162.1,4162.0,3.05953659]
[1758656877819,0.13387683,4162.1,4162.0,3.0835635]
[1758656878241,0.13387683,4162.1,4162.0,5.08220003]
[1758656878542,0.13387683,4162.1,4162.0,5.05817312]
[1758656878708,0.13387683,4162.1,4162.0,2.65553653]
[1758656879755,4.20387683,4162.1,4162.0,5.05822754]
[1758656880545,4.20387683,4162.1,4158.5,0.11838984]
[1758656880728,4.20387683,4162.1,4160.5,0.6569]
[1758656880729,2.40308188,4161.4,4160.5,0.6569]
[1758656880933,6.51215582,4161.3,4160.5,3.6569]
[1758656881140,6.75805582,4161.2,4160.5,0.6569]
[1758656881341,6.75805582,4161.2,4161.1,0.024]
[1758656881714,7.19675582,4161.2,4161.1,0.024]
[1758656882447,6.75805582,4161.2,4161.1,0.024]
[1758656882627,7.19675582,4161.2,4161.1,0.024]
[1758656882821,9.59990875,4161.2,4161.1,0.024]
[1758656883214,1.04175582,4161.2,4161.1,0.024]
[1758656883414,0.13387683,4161.2,4161.1,0.6809]
[1758656883722,0.13387683,4161.2,4161.1,1.62019]
[1758656883923,4.21987683,4161.2,4161.1,4.04743278]
[1758656884152,4.21987683,4161.2,4161.1,18.54743278]
[1758656884357,4.21987683,4161.2,4161.1,18.52340068]
[1758656884853,0.13387683,4161.2,4161.1,18.52340068]
[1758656889770,0.13387683,4161.2,4161.1,17.86650068]
[1758656889969,0.13387683,4161.2,4161.1,18.52340068]
[1758656890543,0.13387683,4161.2,4161.1,18.64340068]
[1758656891573,0.13387683,4161.2,4161.1,17.98650068]
[1758656891870,0.13387683,4161.2,4161.1,18.52891068]
[1758656892283,0.13387683,4161.2,4161.1,21.52891068]
[1758656892489,2.08,4162.1,4162.0,2.40269101]
[1758656892667,2.21408629,4162.1,4162.0,3.90859101]
[1758656893067,2.21408629,4162.1,4162.0,18.40859101]
[1758656893661,0.13508629,4162.1,4162.0,20.50172663]
[1758656894070,0.13508629,4162.1,4162.0,19.78782663]
[1758656895788,0.38058629,4162.1,4162.0,16.90269101]
[1758656895986,0.13508629,4162.1,4162.0,17.69469101]
[1758656896186,0.13508629,4162.1,4162.0,18.40859101]
[1758656896744,0.13508629,4162.1,4162.0,15.292]
[1758656896945,0.38058629,4162.1,4162.0,14.5]
[1758656897161,0.84688629,4162.1,4162.0,14.5]
[1758656897361,1.07016985,4162.1,4162.0,14.5]
[1758656897560,0.60386985,4162.1,4162.0,14.5]
[1758656897788,1.07016985,4162.1,4162.0,14.5]
[1758656898152,0.60386985,4162.1,4162.0,14.5]
[1758656898352,0.35842487,4162.1,4162.0,19.62407163]
[1758656898656,0.13508629,4162.1,4162.0,19.38497163]
[1758656898870,0.13508629,4162.1,4162.0,15.292]
[1758656899065,0.13508629,4162.1,4162.0,16.90269101]
[1758656899270,0.35842487,4162.1,4162.0,14.5]
[1758656899466,0.13508629,4162.1,4162.0,14.5]
[1758656899871,0.35842487,4162.1,4162.0,14.5]
[1758656900072,0.13508629,4162.1,4162.0,14.5]
[1758656900468,0.35842487,4162.1,4162.0,14.5]
[1758656900757,0.13508629,4162.1,4162.0,16.90269101]
[1758656901077,0.13508629,4162.1,4162.0,20.3391464]
[1758656904051,0.13508629,4162.1,4162.0,14.5]
[1758656904284,0.13508629,4162.1,4162.0,16.90269101]
[1758656905059,0.13508629,4162.1,4162.0,14.5]
[1758656905256,0.84688629,4162.1,4162.0,14.5]
[1758656905471,0.38058629,4162.1,4162.0,14.5]
[1758656907372,0.13508629,4162.1,4162.0,14.5]
[1758656907770,0.13508629,4162.1,4162.0,19.87635179]
[1758656907983,0.13508629,4162.1,4162.0,20.47115179]
[1758656908185,0.13508629,4162.1,4162.0,23.47115179]
[1758656908388,0.001,4162.1,4162.0,23.47115179]
[1758656909392,0.001,4162.1,4162.0,23.23205179]
[1758656909696,0.13492597,4162.1,4162.0,22.75725179]
[1758656910063,0.13492597,4162.1,4162.0,23.47115179]
[1758656910659,0.001,4162.1,4162.0,23.47115179]
[1758656913379,0.13492576,4162.1,4162.0,23.47115179]
[1758656913988,0.001,4162.1,4162.0,23.47115179]
[1758656914809,0.001,4162.1,4162.0,23.35115179]
[1758656915025,0.001,4162.1,4162.0,23.47115179]
[1758656917790,0.001,4162.1,4162.0,23.47515179]
[1758656918690,0.001,4162.1,4162.0,23.57143119]
[1758656924949,0.001,4162.1,4162.0,29.72143119]
[1758656925326,0.001,4162.1,4162.0,29.71943119]
[1758656926078,0.001,4162.1,4162.0,26.92753119]
[1758656926288,0.001,4162.1,4162.0,27.17443119]
[1758656926450,0.001,4162.1,4162.0,27.61723119]
[1758656927346,0.001,4162.1,4162.0,22.85753119]
[1758656927546,0.001,4162.1,4162.0,27.61823119]
[1758656928648,0.001,4162.1,4162.0,26.92853119]
[1758656929088,0.001,4162.1,4162.0,21.96925179]
[1758656929244,0.7146,4162.1,4162.0,26.04025179]
[1758656929444,0.2427,4162.1,4162.0,26.83225179]
[1758656930050,0.001,4162.1,4162.0,26.83225179]
[1758656933635,0.7146,4162.1,4162.0,17.81869101]
[1758656933757,0.7146,4162.1,4162.0,21.88669101]
[1758656933957,0.7146,4162.1,4162.0,24.88669101]
[1758656934985,0.2427,4162.1,4162.0,24.88669101]
[1758656935894,0.001,4162.1,4162.0,25.57639101]
[1758656936096,0.001,4162.1,4162.0,28.01922861]
[1758656936397,0.001,4162.1,4162.0,23.26152861]
[1758656936606,0.001,4162.1,4162.0,27.32952861]
[1758656938097,0.001,4162.1,4162.0,28.01922861]
[1758656938270,0.001,4162.1,4162.0,28.11551496]
[1758656940375,0.001,4162.1,4162.0,27.32952861]
[1758656940571,0.001,4162.1,4162.0,27.77232861]
[1758656940790,0.001,4162.1,4162.0,28.01922861]
[1758656940986,0.001,4162.1,4162.0,27.32952861]
[1758656941204,0.001,4162.1,4162.0,27.32852861]
[1758656941412,0.2427,4162.1,4162.0,27.32852861]
[1758656941712,0.001,4162.1,4162.0,27.32852861]
[1758656941894,0.2427,4162.1,4162.0,27.32852861]
[1758656942098,0.2427,4162.1,4162.0,20.02669101]
[1758656942303,0.7146,4162.1,4162.0,24.09269101]
[1758656942499,0.001,4162.1,4162.0,24.88469101]
[1758656943677,0.2427,4162.1,4162.0,24.88469101]
[1758656945384,0.84890164,4162.1,4162.0,24.88469101]
[1758656946115,0.84890164,4162.1,4162.0,20.02669101]
[1758656946317,0.84890164,4162.1,4162.0,20.81869101]
[1758656946614,0.84890164,4162.1,4162.0,17.624]
[1758656946996,0.84890164,4162.1,4162.0,14.504]
[1758656947818,1.07250664,4162.1,4162.0,14.504]
[1758656947990,2.4219845,4162.1,4162.0,14.504]
[1758656948194,4.60101278,4162.1,4162.0,14.504]
[1758656948398,2.42185868,4162.1,4162.0,14.504]
[1758656948598,4.82449196,4162.1,4162.0,14.504]
[1758656948983,4.82449196,4162.1,4162.0,0.004]
[1758656948984,5.33917079,4162.1,4162.0,0.004]
[1758656950215,8.33917079,4162.1,4162.0,0.004]
[1758656950418,9.2623745,4162.1,4162.0,0.004]
[1758656950715,9.63821782,4162.1,4162.0,0.004]
[1758656950893,2.40292195,4161.6,4161.5,0.004]
[1758656951083,22.8678233,4161.6,4161.5,0.004]
[1758656951282,24.04914812,4161.6,4161.5,0.004]
[1758656952124,24.69026831,4161.6,4161.5,0.004]
[1758656952284,24.04914812,4161.6,4161.5,0.004]
[1758656952732,32.18740976,4161.6,4161.5,0.004]
[1758656952937,3.0,4161.5,4161.1,0.02]
[1758656953226,2.40315293,4161.2,4161.1,0.02]
[1758656953385,5.76093375,4161.2,4161.1,0.02]
[1758656953582,6.94225857,4161.2,4161.1,0.02]
[1758656953782,6.94225857,4161.2,4161.1,0.024]
[1758656955335,6.42873375,4161.2,4161.1,0.024]
[1758656955619,2.15304543,4161.2,4161.1,0.024]
[1758656955820,6.52270164,4161.2,4161.1,0.024]
[1758656956019,6.28430164,4161.2,4161.1,0.024]
[1758656956243,6.52270164,4161.2,4161.1,0.024]
[1758656956429,6.95210164,4161.2,4161.1,0.024]
[1758656956718,7.35141657,4161.2,4161.1,0.024]
[1758656956889,6.92201657,4161.2,4161.1,0.024]
[1758656957290,0.77201657,4161.2,4161.1,0.024]
[1758656957485,6.52170164,4161.2,4161.1,0.024]
[1758656957932,6.95110164,4161.2,4161.1,0.024]
[1758656958288,9.35425457,4161.2,4161.1,0.024]
[1758656959413,12.35425457,4161.2,4161.1,0.024]
[1758656959727,12.57637521,4161.2,4161.1,0.024]
[1758656959950,11.07431702,4161.2,4161.1,0.024]
[1758656960163,8.67315053,4161.2,4161.1,0.024]
[1758656960378,11.07630346,4161.2,4161.1,0.024]
[1758656962548,14.07630346,4161.2,4161.1,0.024]
[1758656964424,5.92735053,4161.2,4161.1,0.024]
[1758656964643,6.28630164,4161.2,4161.1,0.024]
[1758656964870,6.52470164,4161.2,4161.1,0.024]
[1758656965069,6.28630164,4161.2,4161.1,0.024]
[1758656965233,6.28530164,4161.2,4161.1,0.024]
[1758656966469,4.20630164,4161.2,4161.1,3.10451068]
[1758656966667,4.32630164,4161.2,4161.1,3.10451068]
[1758656966874,4.32630164,4161.2,4161.1,17.60451068]
[1758656967674,4.32630164,4161.2,4161.1,15.2013]
[1758656968592,4.32630164,4161.2,4161.1,17.60451068]
[1758656969094,4.32630164,4161.2,4161.1,15.2013]
[1758656969261,4.32530164,4161.2,4161.1,17.60451068]
[1758656969458,4.20530164,4161.2,4161.1,18.39651068]
[1758656970704,4.20530164,4161.2,4161.1,14.524]
[1758656970869,4.9842318,4161.2,4161.1,14.524]
[1758656971469,4.7458318,4161.2,4161.1,14.524]
[1758656972211,4.96856094,4161.2,4161.1,14.524]
[1758656972969,4.54803078,4161.2,4161.1,14.524]
[1758656973298,0.13430164,4161.2,4161.1,18.39651068]
[1758656973703,0.13430164,4161.2,4161.1,18.51651068]
[1758656976825,0.13430164,4161.2,4161.1,17.83921068]
[1758656976988,4.20330164,4161.2,4161.1,17.71921068]
[1758656977603,4.4267323,4161.2,4161.1,17.71921068]
[1758656978325,4.6651323,4161.2,4161.1,14.524]
[1758656978521,5.17982815,4161.2,4161.1,14.524]
[1758656978890,4.94142815,4161.2,4161.1,14.524]
[1758656979785,8.59457591,4161.2,4161.1,0.024]
[1758656980113,9.2356961,4161.2,4161.1,0.024]
[1758656980316,8.59457591,4161.2,4161.1,0.024]
[1758656981782,2.40344172,4160.7,4160.6,0.004]
[1758656982007,9.42486987,4160.7,4160.6,0.004]
[1758656982307,8.95589229,4160.7,4160.6,0.004]
[1758656982509,11.35933401,4160.7,4160.6,0.004]
[1758656982722,12.00274525,4160.7,4160.6,0.004]
[1758656983422,11.35933401,4160.7,4160.6,0.004]
[1758656985441,5.21033401,4160.7,4160.6,0.004]
[1758656985630,8.26759229,4160.7,4160.6,0.004]
[1758656985804,11.31373873,4160.7,4160.6,0.004]
[1758656985999,8.91029701,4160.7,4160.6,0.004]
[1758656986196,11.31373873,4160.7,4160.6,0.004]
[1758656986407,11.35833401,4160.7,4160.6,0.004]
[1758656987407,12.00083188,4160.7,4160.6,0.004]
[1758656988332,12.00079356,4160.7,4160.6,0.004]
[1758656988714,18.54833401,4160.7,4160.6,0.004]
[1758656989112,21.54833401,4160.7,4160.6,0.004]
[1758656989303,22.40532372,4160.7,4160.6,0.004]
[1758656990731,2.40373058,4160.2,4160.1,0.02]
[1758656990935,7.30920151,4160.2,4160.1,0.024]
[1758656991101,8.04979736,4160.2,4160.1,0.024]
[1758656992305,11.51119736,4160.2,4160.1,0.024]
[1758656993148,12.36710328,4160.2,4160.1,0.004]
[1758656993348,12.36710328,4160.2,4159.1,0.02]
[1758656993349,2.40430852,4159.2,4159.1,0.02]
[1758656993508,8.91204082,4159.2,4159.1,0.02]
[1758656993703,0.87242815,4159.2,4159.1,0.02]
[1758656993945,8.91204082,4159.2,4159.1,0.02]
[1758656994133,9.42673667,4159.2,4159.1,0.02]
[1758656994331,13.61790034,4159.2,4159.1,0.02]
[1758656994533,14.07930034,4159.2,4159.1,0.02]
[1758656994731,13.61790034,4159.2,4159.1,0.02]
[1758656995105,14.07930034,4159.2,4159.1,0.02]
[1758656995308,15.00181817,4159.2,4159.1,0.02]
[1758656995624,14.07930034,4159.2,4159.1,0.02]
[1758656995827,14.55395365,4159.2,4159.1,0.02]
[1758656996026,8.40395365,4159.2,4159.1,0.02]
[1758656996203,7.71665365,4159.2,4159.1,0.02]
[1758656996405,13.86865365,4159.2,4159.1,0.02]
[1758656996717,14.09455365,4159.2,4159.1,0.02]
[1758656996919,14.55595365,4159.2,4159.1,0.02]
[1758656997349,12.15164513,4159.2,4159.1,0.02]
[1758656997657,14.55595365,4159.2,4159.1,0.02]
[1758656998062,8.40395365,4159.2,4159.1,0.02]
[1758656998246,14.55595365,4159.2,4159.1,0.02]
[1758657000151,8.40395365,4159.2,4159.1,0.02]
[1758657000358,11.78665365,4159.2,4159.1,0.02]
[1758657000523,14.09255365,4159.2,4159.1,0.02]
[1758657000728,14.55395365,4159.2,4159.1,0.02]
[1758657001531,14.55495365,4159.2,4159.1,0.02]
[1758657001830,8.40395365,4159.2,4159.1,0.02]
[1758657002025,7.71665365,4159.2,4159.1,0.02]
[1758657002250,6.42708146,4159.2,4159.1,0.247]